bitfinex/quotes_BTCUSD_20250330
["timestamp","ask_amount","ask_price","bid_price","bid_amount"]
[1743365723322,0.0001684,82789.0,82788.0,0.79778789]
[1743365723526,0.0001684,82789.0,82788.0,0.79178789]
[1743365723725,0.0001684,82789.0,82788.0,0.79778789]
[1743365723943,0.0001684,82789.0,82788.0,0.66158789]
[1743365724206,0.01,82793.0,82792.0,0.01954085]
[1743365724410,0.01,82793.0,82792.0,0.22051372]
[1743365725388,0.01,82793.0,82792.0,0.22651372]
[1743365726029,0.01,82793.0,82792.0,0.22892902]
[1743365726229,0.01,82793.0,82792.0,0.64822902]
[1743365726505,0.0098316,82793.0,82792.0,0.65181372]
[1743365728623,0.0096632,82793.0,82792.0,0.65181372]
[1743365728799,0.0096632,82793.0,82792.0,0.704]
[1743365730119,0.0096632,82793.0,82792.0,0.692]
[1743365730326,0.0096632,82793.0,82792.0,0.698]
[1743365730471,0.0096632,82793.0,82792.0,0.704]
[1743365733622,0.17161601,82796.0,82792.0,0.704]
[1743365733802,0.17161601,82796.0,82793.0,0.0797147]
[1743365735313,0.17161601,82796.0,82793.0,0.0857147]
[1743365735856,0.17161601,82796.0,82793.0,0.08813005]
[1743365736055,0.17161601,82796.0,82793.0,0.09413005]
[1743365736243,0.17161601,82796.0,82795.0,0.081]
[1743365736445,0.17161601,82796.0,82795.0,0.47950846]
[1743365736683,0.17161601,82796.0,82795.0,0.47709336]
[1743365736885,0.17161601,82796.0,82795.0,0.24845536]
[1743365737785,0.17161601,82796.0,82795.0,0.6976903]
[1743365738320,0.17161601,82796.0,82795.0,0.7036903]
[1743365738806,0.004,82809.0,82800.0,0.005]
[1743365738959,0.004,82809.0,82800.0,0.57106613]
[1743365739901,0.004,82809.0,82800.0,0.57706613]
[1743365740284,0.000337,82809.0,82801.0,0.005]
[1743365741631,0.000337,82809.0,82801.0,0.008]
[1743365741967,0.000337,82809.0,82801.0,0.012]
[1743365742176,0.000337,82809.0,82802.0,0.05780661]
[1743365743551,0.000337,82809.0,82802.0,0.06480661]
[1743365743748,0.000337,82809.0,82803.0,0.4193]
[1743365745639,0.000337,82809.0,82803.0,0.4233]
[1743365746290,0.000337,82809.0,82803.0,0.4263]
[1743365746491,0.000337,82809.0,82803.0,0.4524235]
[1743365748656,0.0005055,82809.0,82803.0,0.4524235]
[1743365751507,0.0005055,82809.0,82803.0,0.4263]
[1743365752511,0.15167335,82812.0,82803.0,0.4263]
[1743365752864,0.15167335,82812.0,82811.0,0.0009887]
[1743365754166,0.15214494,82812.0,82811.0,0.0009887]
[1743365754489,0.15214494,82812.0,82811.0,0.0039887]
[1743365754706,0.15163944,82812.0,82811.0,0.0039887]
[1743365756627,0.15163944,82812.0,82811.0,0.0069887]
[1743365756839,0.15113394,82812.0,82811.0,0.0069887]
[1743365757658,0.00047159,82812.0,82811.0,0.0875887]
[1743365757860,0.02547724,82812.0,82811.0,0.09634757]
[1743365758219,0.02547724,82812.0,82811.0,0.01574757]
[1743365758631,0.02547724,82812.0,82811.0,0.01274757]
[1743365758856,0.02547724,82812.0,82811.0,0.00974757]
[1743365759061,0.02547724,82812.0,82811.0,0.01274757]
[1743365759235,0.02547724,82812.0,82811.0,0.01674757]
[1743365759434,0.02547724,82812.0,82811.0,0.0079887]
[1743365762277,0.02564574,82812.0,82811.0,0.0079887]
[1743365763503,0.0001685,82812.0,82811.0,0.0079887]
[1743365764170,0.02469355,82812.0,82811.0,0.0079887]
[1743365765682,0.13182943,82820.0,82812.0,0.00078369]
[1743365765895,0.15575923,82820.0,82812.0,0.00078369]
[1743365766738,0.15575923,82820.0,82812.0,0.00178369]
[1743365767394,0.15575923,82820.0,82813.0,0.0806]
[1743365767597,0.15575923,82820.0,82814.0,0.01307724]
[1743365769051,0.15575923,82820.0,82813.0,0.0816]
[1743365769223,0.15575923,82820.0,82814.0,0.001]
[1743365769629,0.15575923,82820.0,82814.0,0.002]
[1743365769995,0.15575923,82820.0,82814.0,0.001]
[1743365772154,0.15575923,82820.0,82814.0,0.002]
[1743365773182,0.01,82821.0,82815.0,0.00843724]
[1743365773333,0.03410991,82821.0,82815.0,0.00843724]
[1743365773538,0.01,82821.0,82815.0,0.00843724]
[1743365774914,0.01,82821.0,82815.0,0.00943724]
[1743365775078,0.0001684,82820.0,82815.0,0.00943724]
[1743365775415,0.0001684,82820.0,82816.0,0.00931464]
[1743365776316,0.0001684,82820.0,82815.0,0.002]
[1743365776617,0.0001684,82820.0,82815.0,0.001]
[1743365776810,0.0001684,82820.0,82816.0,0.001]
[1743365777862,0.0001684,82820.0,82816.0,0.002]
[1743365778304,0.0001684,82820.0,82816.0,0.001]
[1743365779124,0.0001684,82820.0,82816.0,0.002]
[1743365782226,0.03316129,82820.0,82816.0,0.002]
[1743365784031,0.02365005,82819.0,82816.0,0.002]
[1743365785180,0.02365005,82819.0,82812.0,0.00078369]
[1743365785378,0.02365005,82819.0,82816.0,0.002]
[1743365785892,0.02365005,82819.0,82816.0,0.003]
[1743365786101,0.02365005,82819.0,82816.0,0.001]
[1743365787973,0.02365005,82819.0,82816.0,0.003]
[1743365789264,0.24203673,82826.0,82816.0,0.003]
[1743365789465,0.02409802,82819.0,82816.0,0.003]
[1743365790664,0.02409802,82819.0,82815.0,0.0003368]
[1743365791510,0.26652529,82826.0,82815.0,0.0003368]
[1743365791710,0.02452177,82820.0,82816.0,0.003]
[1743365791887,0.26652529,82826.0,82816.0,0.002]
[1743365792099,0.15631799,82826.0,82816.0,0.002]
[1743365792307,0.15631799,82826.0,82817.0,0.0085746]
[1743365793482,0.15631799,82826.0,82815.0,0.0846368]
[1743365793682,0.13182943,82825.0,82815.0,0.0846368]
[1743365794361,0.13182943,82825.0,82815.0,0.0836368]
[1743365794769,0.13182943,82825.0,82815.0,0.0816368]
[1743365799772,0.18092038,82826.0,82815.0,0.0816368]
[1743365799975,0.13182943,82825.0,82815.0,0.0816368]
[1743365800369,0.13199783,82825.0,82815.0,0.0816368]
[1743365802443,0.13207748,82825.0,82815.0,0.0816368]
[1743365803318,0.13207748,82825.0,82815.0,0.0946714]
[1743365804644,0.13207748,82825.0,82815.0,0.0816368]
[1743365804847,0.00024805,82825.0,82815.0,0.0816368]
[1743365806228,0.30577184,82832.0,82815.0,0.0816368]
[1743365806343,0.13182943,82825.0,82815.0,0.08171645]
[1743365806960,0.30577184,82832.0,82825.0,0.00024805]
[1743365807576,0.3360346,82832.0,82825.0,0.00024805]
[1743365808436,0.02383147,82827.0,82825.0,0.00024805]
[1743365810146,0.05682436,82827.0,82825.0,0.00024805]
[1743365811233,0.05699276,82827.0,82825.0,0.00024805]
[1743365814451,0.03299289,82826.0,82825.0,0.00024805]
[1743365815010,0.08175126,82826.0,82825.0,0.00024805]
[1743365815470,0.03299289,82826.0,82825.0,0.00024805]
[1743365818863,0.06817719,82826.0,82825.0,0.00024805]
[1743365823672,0.0001684,82826.0,82825.0,0.00024805]
[1743365826047,0.0001684,82826.0,82815.0,0.00041645]
[1743365826265,0.26365886,82825.0,82815.0,0.00041645]
[1743365829930,0.13182943,82825.0,82815.0,0.00041645]
[1743365831452,0.13182943,82825.0,82816.0,0.0475]
[1743365831653,0.13182943,82825.0,82817.0,0.0752]
[1743365831981,0.0001684,82826.0,82817.0,0.0752]
[1743365832609,0.553573,82816.0,82815.0,0.00041645]
[1743365832835,0.253604,82806.0,82805.0,0.0752]
[1743365833042,0.273506,82806.0,82803.0,0.000337]
[1743365833242,0.253597,82809.0,82803.0,0.000337]
[1743365833243,0.15347,82805.0,82803.0,0.000337]
[1743365833444,0.16679,82804.0,82803.0,0.000337]
[1743365833579,0.258773,82806.0,82803.0,0.000337]
[1743365833776,0.225208,82806.0,82803.0,0.000337]
[1743365833990,0.228841,82806.0,82803.0,0.000337]
[1743365834186,0.213615,82806.0,82803.0,0.000337]
[1743365834389,0.132531,82805.0,82803.0,0.000337]
[1743365834575,0.142598,82806.0,82803.0,0.000337]
[1743365834771,0.012075,82809.0,82803.0,0.000337]
[1743365835426,0.37333843,82813.0,82803.0,0.000337]
[1743365835726,0.37333843,82813.0,82803.0,0.003337]
[1743365835949,0.205803,82811.0,82803.0,0.003337]
[1743365836278,0.205803,82811.0,82803.0,0.006337]
[1743365836680,0.205803,82811.0,82803.0,0.000337]
[1743365836902,0.126378,82811.0,82803.0,0.002337]
[1743365837102,0.104959,82812.0,82803.0,0.003337]
[1743365837302,0.39453484,82813.0,82803.0,0.001337]
[1743365837502,0.117034,82812.0,82803.0,0.001337]
[1743365837716,0.012075,82812.0,82803.0,0.001337]
[1743365838290,0.012075,82812.0,82803.0,0.000337]
[1743365838724,0.012075,82812.0,82803.0,0.001337]
[1743365838922,0.012075,82812.0,82803.0,0.000337]
[1743365839125,0.1362,82811.0,82803.0,0.001337]
[1743365839341,0.0245321,82805.0,82803.0,0.001337]
[1743365839530,0.1362,82809.0,82804.0,0.0752]
[1743365841065,0.16020716,82809.0,82804.0,0.0772]
[1743365841967,0.16020716,82809.0,82804.0,0.0792]
[1743365846641,0.07808419,82813.0,82804.0,0.0792]
[1743365847245,0.02391996,82809.0,82804.0,0.0792]
[1743365847545,0.02391996,82809.0,82804.0,0.0772]
[1743365847745,0.02391996,82809.0,82804.0,0.0782]
[1743365848412,0.02391996,82809.0,82805.0,0.00795336]
[1743365848588,0.02391996,82809.0,82806.0,0.0787]
[1743365849802,0.02391996,82809.0,82806.0,0.0807]
[1743365850391,0.02391996,82809.0,82806.0,0.0827]
[1743365855111,0.0001684,82812.0,82806.0,0.0827]
[1743365855307,0.02451971,82810.0,82806.0,0.0827]
[1743365855520,0.02451971,82810.0,82806.0,0.0910037]
[1743365855699,0.0001684,82812.0,82807.0,0.0479]
[1743365855901,0.0001684,82812.0,82806.0,0.004]
[1743365855902,0.0001684,82812.0,82809.0,0.0479]
[1743365856105,0.0001684,82812.0,82810.0,0.0787]
[1743365858859,0.0001684,82812.0,82810.0,0.0797]
[1743365859228,0.0001684,82812.0,82810.0,0.0807]
[1743365869268,0.15625226,82820.0,82810.0,0.0807]
[1743365870970,0.15625226,82820.0,82810.0,0.0797]
[1743365871169,0.15625226,82820.0,82810.0,0.0787]
[1743365872416,0.15642076,82820.0,82810.0,0.0787]
[1743365873007,0.15642076,82820.0,82810.0,0.0915268]
[1743365873396,0.15642076,82820.0,82810.0,0.0787]
[1743365878514,0.0001685,82820.0,82810.0,0.0787]
[1743365878719,0.0001685,82820.0,82816.0,0.0009931]
[1743365878855,0.0001685,82820.0,82817.0,0.0788]
[1743365881006,0.28595383,82827.0,82817.0,0.0788]
[1743365881209,0.241469,82827.0,82817.0,0.0798]
[1743365881793,0.02374991,82822.0,82817.0,0.0788]
[1743365885130,0.02374991,82822.0,82817.0,0.079137]
[1743365894241,0.0001685,82827.0,82819.0,0.048]
[1743365894419,0.0001685,82827.0,82820.0,0.0827]
[1743365900141,9.67e-05,82828.0,82820.0,0.0827]
[1743365910513,9.67e-05,82828.0,82820.0,0.083037]
[1743365910714,0.0001685,82828.0,82821.0,0.02685271]
[1743365912409,0.0001685,82828.0,82820.0,0.083037]
[1743365914211,0.0001685,82828.0,82821.0,0.0464]
[1743365914462,0.0001685,82828.0,82822.0,0.0759]
[1743365914708,0.0001685,82828.0,82823.0,0.0464]
[1743365914901,0.0001685,82828.0,82824.0,0.0759]
[1743365915125,0.0001685,82828.0,82824.0,0.0881637]
[1743365915413,0.0001685,82828.0,82824.0,0.0759]
[1743365917939,0.0001685,82828.0,82824.0,0.0769]
[1743365918500,0.0001685,82828.0,82824.0,0.0779]
[1743365919153,0.0001685,82828.0,82824.0,0.0788941]
[1743365919908,0.0001685,82828.0,82824.0,0.0778941]
[1743365920102,0.0001685,82828.0,82824.0,0.0788941]
[1743365920306,0.0001685,82828.0,82826.0,0.0759]
[1743365922085,0.0001685,82828.0,82826.0,0.0779]
[1743365923678,0.0001685,82828.0,82826.0,0.0759]
[1743365923813,0.0001685,82828.0,82826.0,0.0789]
[1743365925178,0.0001685,82828.0,82826.0,0.0809]
[1743365936151,0.0001685,82828.0,82826.0,0.081237]
[1743365939805,0.0001685,82828.0,82826.0,0.005337]
[1743365940345,0.0360346,82832.0,82826.0,0.005337]
[1743365940658,0.0360817,82832.0,82826.0,0.005337]
[1743365941268,0.0360817,82832.0,82826.0,0.002337]
[1743365941468,0.0360817,82832.0,82826.0,0.000337]
[1743365941608,0.0360817,82832.0,82826.0,0.001337]
[1743365942415,0.0310817,82832.0,82826.0,0.001337]
[1743365942642,0.0310817,82832.0,82826.0,0.003337]
[1743365944979,0.0310817,82832.0,82826.0,0.01156751]
[1743365945149,0.0310817,82832.0,82827.0,0.0773]
[1743365946186,0.0310817,82832.0,82827.0,0.0783]
[1743365946669,0.0310817,82832.0,82827.0,0.0803]
[1743365947450,0.0310817,82832.0,82829.0,0.0773]
[1743365947678,0.0310817,82832.0,82829.0,0.09110616]
[1743365948435,0.0312502,82832.0,82829.0,0.09110616]
[1743365948802,0.0312502,82832.0,82829.0,0.09210616]
[1743365950384,0.0312502,82832.0,82829.0,0.09410616]
[1743365950787,0.0312502,82832.0,82829.0,0.0803]
[1743365955119,0.0312502,82832.0,82829.0,0.003]
[1743365957128,0.02255076,82833.0,82829.0,0.003]
[1743365958372,0.054679,82833.0,82829.0,0.003]
[1743365958599,0.02255076,82833.0,82829.0,0.003]
[1743365958799,0.02255076,82833.0,82829.0,0.002]
[1743365958914,0.02255076,82833.0,82829.0,0.003]
[1743365959278,0.02255076,82833.0,82829.0,0.001]
[1743365959574,0.02255076,82833.0,82829.0,0.002]
[1743365960140,0.0001685,82832.0,82829.0,0.002]
[1743365960335,0.03369828,82833.0,82829.0,0.002]
[1743365960539,0.3,82838.0,82829.0,0.01035311]
[1743365960965,0.3,82838.0,82829.0,0.00935311]
[1743365960966,0.3327602,82838.0,82829.0,0.00935311]
[1743365961341,0.3448312,82838.0,82829.0,0.001]
[1743365961711,0.253509,82837.0,82829.0,0.001]
[1743365961884,0.253509,82837.0,82826.0,0.000337]
[1743365962246,0.253509,82837.0,82832.0,0.0001685]
[1743365962446,0.0327602,82838.0,82832.0,0.0001685]
[1743365962784,0.3,82839.0,82832.0,0.0001685]
[1743365963589,0.33337242,82839.0,82833.0,0.0802]
[1743365965496,0.253514,82836.0,82833.0,0.0802]
[1743365965681,0.58687842,82839.0,82832.0,0.0001685]
[1743365965883,0.3,82836.0,82832.0,0.0001685]
[1743365966575,0.253515,82835.0,82833.0,0.001]
[1743365966994,0.241449,82833.0,82832.0,0.0001685]
[1743365967451,0.253521,82833.0,82832.0,0.0001685]
[1743365968371,0.253521,82833.0,82832.0,0.0011685]
[1743365969080,0.253521,82833.0,82832.0,0.0021685]
[1743365970275,0.27755396,82833.0,82832.0,0.0021685]
[1743365970985,0.253521,82833.0,82832.0,0.0021685]
[1743365971786,0.012072,82833.0,82832.0,0.0021685]
[1743365974208,0.012072,82834.0,82832.0,0.0021685]
[1743365975202,0.012072,82834.0,82832.0,0.0011685]
[1743365975835,0.012072,82834.0,82832.0,0.0021685]
[1743365976353,0.012071,82837.0,82832.0,0.0021685]
[1743365976531,0.012072,82834.0,82832.0,0.0021685]
[1743365977460,0.248515,82835.0,82832.0,0.0021685]
[1743365977621,0.248515,82835.0,82832.0,0.0011685]
[1743365978524,0.248515,82835.0,82832.0,0.0001685]
[1743365978729,0.248515,82835.0,82832.0,0.0021685]
[1743365982702,0.03641482,82837.0,82832.0,0.0021685]
[1743365983119,0.241449,82833.0,82832.0,0.0021685]
[1743365983505,0.012072,82834.0,82832.0,0.0011685]
[1743365983704,0.012072,82834.0,82832.0,0.0001685]
[1743365983903,0.241449,82833.0,82832.0,0.0001685]
[1743365984514,0.241449,82833.0,82832.0,0.0011685]
[1743365984722,0.241449,82833.0,82832.0,0.0021685]
[1743365984883,0.012072,82834.0,82832.0,0.0021685]
[1743365985486,0.012072,82834.0,82832.0,0.0025053]
[1743365985891,0.012072,82834.0,82832.0,0.0015053]
[1743365986096,0.253521,82834.0,82832.0,0.0015053]
[1743365986496,0.012072,82833.0,82832.0,0.0015053]
[1743365986973,0.012072,82834.0,82832.0,0.0015053]
[1743365987207,0.012072,82834.0,82832.0,0.0025053]
[1743365987406,0.253521,82833.0,82832.0,0.0025053]
[1743365987763,0.253521,82833.0,82832.0,0.0035053]
[1743365987963,0.253521,82833.0,82832.0,0.0025053]
[1743365988214,0.253521,82833.0,82832.0,0.0035053]
[1743365988363,0.253521,82833.0,82832.0,0.0015053]
[1743365988563,0.253521,82833.0,82832.0,0.0025053]
[1743365988790,0.253521,82833.0,82832.0,0.0015053]
[1743365988988,0.253521,82833.0,82832.0,0.0025053]
[1743365989225,0.012072,82833.0,82832.0,0.0025053]
[1743365992725,0.06326861,82834.0,82832.0,0.0025053]
[1743365993385,0.06326861,82834.0,82832.0,0.0023368]
[1743365993560,0.012072,82833.0,82832.0,0.0023368]
[1743365993857,0.012072,82833.0,82832.0,0.0003368]
[1743365994014,0.012072,82833.0,82832.0,0.0013368]
[1743365994266,0.012072,82833.0,82832.0,0.0023368]
[1743365994401,0.012072,82833.0,82832.0,0.0013368]
[1743365994803,0.012072,82833.0,82832.0,0.0023368]
[1743365995003,0.012072,82833.0,82832.0,0.0013368]
[1743365995314,0.012072,82833.0,82832.0,0.0023368]
[1743366000128,0.07534061,82834.0,82832.0,0.0023368]
[1743366000532,0.2536835,82835.0,82832.0,0.0023368]
[1743366000829,0.0122405,82835.0,82832.0,0.0023368]
[1743366000968,0.0122405,82835.0,82832.0,0.0013368]
[1743366001178,0.0122405,82835.0,82832.0,0.0003368]
[1743366001387,0.0001685,82835.0,82832.0,0.0023368]
[1743366001838,0.0001685,82835.0,82832.0,0.0003368]
[1743366002219,0.0001685,82835.0,82832.0,0.0013368]
[1743366002377,0.0001685,82835.0,82832.0,0.0023368]
[1743366003312,0.0001685,82835.0,82833.0,0.00828738]
[1743366003466,0.0001685,82835.0,82832.0,0.0023368]
[1743366003668,0.0001685,82835.0,82833.0,0.1266]
[1743366003875,0.0001685,82835.0,82834.0,0.0782]
[1743366004464,0.2416115,82835.0,82834.0,0.0782]
[1743366004681,0.0001685,82835.0,82834.0,0.0782]
[1743366004886,0.0001685,82835.0,82834.0,0.0792]
[1743366005426,0.0001685,82835.0,82834.0,0.0802]
[1743366005764,0.2536835,82835.0,82834.0,0.002]
[1743366008836,0.27627769,82835.0,82834.0,0.002]
[1743366009402,0.02276269,82835.0,82834.0,0.002]
[1743366009946,0.01680137,82836.0,82835.0,0.23092081]
[1743366010947,0.01680137,82836.0,82835.0,0.23192081]
[1743366011521,0.01680137,82836.0,82835.0,0.21931981]
[1743366011737,0.32887337,82836.0,82835.0,0.21931981]
[1743366011935,0.39140416,82836.0,82835.0,0.21931981]
[1743366012142,0.93796988,82836.0,82835.0,0.21931981]
[1743366012341,0.84809588,82836.0,82835.0,0.21931981]
[1743366012912,0.84809588,82836.0,82835.0,0.19711981]
[1743366013085,0.88034816,82836.0,82835.0,0.16371981]
[1743366013678,0.84809588,82836.0,82835.0,0.16371981]
[1743366016565,0.59863637,82836.0,82835.0,0.16371981]
[1743366016775,0.26326015,82837.0,82836.0,0.38314251]
[1743366017023,0.41141115,82837.0,82836.0,0.38314251]
[1743366017810,0.27533115,82837.0,82836.0,0.38314251]
[1743366018012,0.02182015,82837.0,82836.0,0.46514251]
[1743366018238,0.02182015,82837.0,82836.0,0.57316121]
[1743366019209,0.02182015,82837.0,82836.0,0.51014251]
[1743366021660,0.02182015,82837.0,82836.0,0.51047951]
[1743366021848,0.02198865,82837.0,82836.0,0.51047951]
[1743366023146,0.02198865,82837.0,82836.0,0.127337]
[1743366031821,0.03269973,82837.0,82836.0,0.127337]
[1743366039000,0.0107304,82837.0,82836.0,0.127337]
[1743366039172,0.3,82840.0,82837.0,0.02196933]
[1743366040036,0.00619346,82839.0,82837.0,0.02196933]
[1743366040186,0.0276879,82843.0,82837.0,0.02196933]
[1743366040589,0.00619346,82842.0,82837.0,0.02196933]
[1743366040789,0.04743843,82842.0,82837.0,0.02196933]
[1743366041388,0.04748553,82842.0,82837.0,0.02196933]
[1743366042691,0.00095951,82841.0,82837.0,0.02196933]
[1743366045637,0.00112801,82841.0,82837.0,0.02196933]
[1743366047575,0.00715297,82840.0,82837.0,0.02196933]
[1743366048490,0.00715297,82840.0,82837.0,0.02396933]
[1743366049052,0.00715297,82840.0,82837.0,0.03723243]
[1743366049276,0.00715297,82840.0,82837.0,0.03923243]
[1743366049814,0.00715297,82840.0,82837.0,0.04123243]
[1743366050179,0.3,82844.0,82837.0,0.04123243]
[1743366050375,0.00580089,82839.0,82837.0,0.04123243]
[1743366050558,0.3,82844.0,82837.0,0.04123243]
[1743366050763,0.00580089,82838.0,82837.0,0.04123243]
[1743366051005,0.03552643,82842.0,82837.0,0.04123243]
[1743366051164,0.00580282,82838.0,82837.0,0.04123243]
[1743366051364,0.00054266,82838.0,82837.0,0.04123243]
[1743366051605,0.00054266,82838.0,82837.0,0.03923243]
[1743366052008,0.31954087,82846.0,82837.0,0.04023243]
[1743366052202,0.00580089,82845.0,82837.0,0.04023243]
[1743366052406,0.00580089,82845.0,82837.0,0.03723243]
[1743366052605,0.00580089,82845.0,82837.0,0.03823243]
[1743366052830,0.00580089,82845.0,82837.0,0.04123243]
[1743366053151,0.00580089,82845.0,82837.0,0.03823243]
[1743366053372,0.00580089,82845.0,82837.0,0.02196933]
[1743366053673,0.00580089,82845.0,82838.0,0.0815]
[1743366054107,0.04146167,82845.0,82838.0,0.0815]
[1743366054315,0.00580089,82845.0,82838.0,0.0815]
[1743366055080,0.00580089,82845.0,82838.0,0.0825]
[1743366055436,0.00580089,82845.0,82840.0,0.0488]
[1743366055674,0.00680861,82845.0,82841.0,0.0815]
[1743366056255,0.04267434,82845.0,82841.0,0.0815]
[1743366056473,0.00680861,82845.0,82841.0,0.0815]
[1743366056658,0.553494,82842.0,82841.0,0.0815]
[1743366056906,0.012071,82841.0,82840.0,0.001]
[1743366057083,0.01365081,82841.0,82840.0,0.001]
[1743366057782,0.01862493,82841.0,82840.0,0.001]
[1743366058627,0.01862493,82841.0,82837.0,0.000337]
[1743366058628,0.012071,82838.0,82837.0,0.000337]
[1743366059023,0.0186307,82838.0,82837.0,0.000337]
[1743366059915,0.2600657,82838.0,82837.0,0.000337]
[1743366060110,0.2600657,82838.0,82837.0,0.002337]
[1743366060290,0.2600657,82838.0,82837.0,0.005337]
[1743366064265,0.241429,82840.0,82837.0,0.005337]
[1743366064447,0.0054645,82839.0,82837.0,0.005337]
[1743366064641,0.012071,82838.0,82837.0,0.005337]
[1743366064880,0.253506,82838.0,82837.0,0.005337]
[1743366065095,0.253506,82838.0,82837.0,0.002337]
[1743366065295,0.253506,82838.0,82837.0,0.000337]
[1743366065567,0.253506,82838.0,82837.0,0.002337]
[1743366065768,0.28378451,82838.0,82837.0,0.004337]
[1743366065942,0.28378451,82838.0,82837.0,0.002337]
[1743366066152,0.28378451,82838.0,82837.0,0.000337]
[1743366066358,0.28378451,82838.0,82837.0,0.005337]
[1743366066701,0.553506,82838.0,82837.0,0.003337]
[1743366066824,0.553506,82838.0,82837.0,0.000337]
[1743366067222,0.553506,82838.0,82837.0,0.001337]
[1743366067841,0.55469746,82838.0,82837.0,0.001337]
[1743366070484,0.66007288,82838.0,82837.0,0.001337]
[1743366070722,0.55469746,82838.0,82837.0,0.001337]
[1743366071924,0.55895996,82838.0,82837.0,0.001337]
[1743366081572,0.58923847,82838.0,82837.0,0.001337]
[1743366081979,0.62149075,82838.0,82837.0,0.001337]
[1743366082279,0.62149075,82838.0,82836.0,0.000337]
[1743366082280,0.312071,82837.0,82836.0,0.000337]
[1743366082432,0.39444538,82837.0,82836.0,0.000337]
[1743366082632,0.66356185,82833.0,82832.0,0.0003368]
[1743366082836,0.66356185,82833.0,82832.0,0.0003839]
[1743366082837,0.86209264,82833.0,82832.0,0.0003839]
[1743366083039,0.55354,82827.0,82826.0,1e-07]
[1743366083319,0.6396377,82827.0,82826.0,1e-07]
[1743366083514,0.66334884,82827.0,82826.0,1e-07]
[1743366085121,0.66766179,82827.0,82826.0,1e-07]
[1743366085325,0.66866179,82827.0,82826.0,1e-07]
[1743366085545,0.553591,82810.0,82809.0,0.0013267]
[1743366085759,1.284449,82810.0,82809.0,0.0003841]
[1743366085945,1.28510177,82810.0,82809.0,0.0003841]
[1743366086184,1.28614437,82810.0,82809.0,0.0003841]
[1743366086458,0.92038237,82810.0,82809.0,0.0003841]
[1743366088424,0.92038237,82810.0,82809.0,0.0023841]
[1743366088622,0.98331755,82810.0,82809.0,0.0023841]
[1743366089831,0.98331755,82810.0,82809.0,0.0003841]
[1743366090249,0.98631755,82810.0,82809.0,0.0003841]
[1743366090453,0.94780831,82810.0,82809.0,0.0003841]
[1743366099115,0.58634531,82810.0,82809.0,0.0003841]
[1743366099254,1.00334731,82810.0,82809.0,0.0003841]
[1743366106945,1.20683731,82810.0,82809.0,0.0003841]
[1743366107144,1.14319931,82810.0,82809.0,0.0003841]
[1743366107351,1.08880431,82810.0,82809.0,0.0003841]
[1743366109991,1.11908282,82810.0,82809.0,0.0003841]
[1743366111552,1.1513351,82810.0,82809.0,1e-07]
[1743366111780,0.6488761,82810.0,82809.0,1e-07]
[1743366112339,0.6488761,82810.0,82803.0,0.000337]
[1743366112340,0.55361,82804.0,82803.0,0.000337]
[1743366112544,0.55882852,82804.0,82803.0,0.00080859]
[1743366113208,1.70082152,82804.0,82803.0,0.00080859]
[1743366113869,1.70282152,82804.0,82803.0,0.00080859]
[1743366114079,1.69232157,82804.0,82803.0,0.00080859]
[1743366114278,1.13364757,82804.0,82803.0,0.00080859]
[1743366114503,1.13464757,82804.0,82803.0,0.00080859]
[1743366116047,0.57096157,82804.0,82803.0,0.00080859]
[1743366116620,1.16939457,82804.0,82803.0,0.00080859]
[1743366117450,0.87233726,82804.0,82803.0,0.00080859]
[1743366117647,0.88441326,82804.0,82803.0,0.00080859]
[1743366118027,1.12594726,82804.0,82803.0,0.00080859]
[1743366120727,1.10276726,82804.0,82803.0,0.00080859]
[1743366121403,1.67824726,82804.0,82803.0,0.00080859]
[1743366122229,0.5523,82804.0,82803.0,0.00080859]
[1743366122424,0.55308301,82804.0,82803.0,0.00080859]
[1743366122753,1.05437263,82804.0,82803.0,0.00080859]
[1743366122959,1.29590663,82804.0,82803.0,0.00080859]
[1743366123562,1.20919563,82804.0,82803.0,0.00080859]
[1743366123942,1.17986463,82804.0,82803.0,0.00080859]
[1743366124243,1.18887803,82804.0,82803.0,0.00080859]
[1743366124420,1.48887803,82804.0,82803.0,0.00080859]
[1743366124964,1.22645591,82804.0,82803.0,0.00080859]
[1743366126509,0.99050891,82804.0,82803.0,0.00080859]
[1743366126937,1.27862791,82804.0,82803.0,0.00080859]
[1743366129496,1.27879651,82804.0,82803.0,0.00080859]
[1743366130015,1.28195027,82804.0,82803.0,0.00080859]
[1743366135140,1.31222878,82804.0,82803.0,0.00080859]
[1743366135871,1.0223509,82804.0,82803.0,0.00080859]
[1743366136481,0.99207239,82804.0,82803.0,0.00080859]
[1743366137212,0.70395339,82804.0,82803.0,0.00080859]
[1743366137416,1.02787139,82804.0,82803.0,0.00080859]
[1743366137623,1.00941439,82804.0,82803.0,0.00080859]
[1743366138080,1.00821845,82804.0,82803.0,0.00080859]
[1743366138196,1.00878362,82804.0,82803.0,0.00080859]
[1743366139097,1.00983218,82804.0,82803.0,0.00080859]
[1743366139407,0.84227618,82804.0,82803.0,0.00080859]
[1743366139584,0.97827618,82804.0,82803.0,0.00080859]
[1743366146468,0.96401118,82804.0,82803.0,0.00080859]
[1743366147872,0.70433118,82804.0,82803.0,0.00080859]
[1743366148080,0.97969418,82804.0,82803.0,0.00080859]
[1743366151327,0.96613818,82804.0,82803.0,0.00080859]
[1743366158440,0.70433118,82804.0,82803.0,0.00080859]
[1743366158670,1.25225518,82804.0,82803.0,0.00080859]
[1743366159395,1.21616418,82804.0,82803.0,0.00080859]
[1743366159621,1.19987618,82804.0,82803.0,0.00080859]
[1743366159780,1.07481318,82804.0,82803.0,0.00080859]
[1743366161161,1.13130618,82804.0,82803.0,0.00080859]
[1743366162436,1.05890318,82804.0,82803.0,0.00080859]
[1743366162643,1.04793718,82804.0,82803.0,0.00080859]
[1743366162988,0.97492218,82804.0,82803.0,0.00080859]
[1743366167687,1.0838837,82804.0,82803.0,0.00080859]
[1743366169109,0.8132927,82804.0,82803.0,0.00080859]
[1743366169534,1.0969707,82804.0,82803.0,0.00080859]
[1743366175754,0.98800918,82804.0,82803.0,0.00080859]
[1743366181057,0.9138902,82804.0,82803.0,0.00080859]
[1743366181261,0.91477866,82804.0,82803.0,0.00080859]
[1743366181640,0.92685466,82804.0,82803.0,0.00080859]
[1743366184480,0.64317666,82804.0,82803.0,0.00080859]
[1743366184772,0.553628,82798.0,82797.0,0.04565658]
[1743366184970,1.27876906,82798.0,82797.0,0.04575328]
[1743366185176,1.01136603,82798.0,82797.0,0.04575328]
[1743366185918,1.25291703,82798.0,82797.0,0.04575328]